Cogmind - Beta 12 @@@ ROGUE MODE // 2024.02.04 @ 23:45:31 Player: %41THX3142 Result: Destroyed self with Grenade Launcher Performance ------------- Evolutions (1) 500 Regions Visited (2) 400 Robots Destroyed (25) 125 Value Destroyed (400) 400 Prototype IDs (1) 20 Alien Tech Used (0) 0 Bonus (0) 0 TOTAL SCORE: 1445 Bonus ------- None Cogmind --------- Core Integrity 0/400 Matter 255/300 Energy 85/100 System Corruption 0% Temperature Cool (6) Movement Core (400) Ox7 Location -9/Materials Parts ------- > --- POWER (1) -------- (None) > --- PROPULSION (2) --- (None) > --- UTILITY (4) ------ Large Storage Unit > --- WEAPON (2) ------- Grenade Launcher > --- INVENTORY (15) --- Ion Engine Light Ion Engine Light Ion Engine Heavy Ion Engine Heat Sink Small Storage Unit Signal Interpreter Weapon Shielding Improved Medium Laser Improved Medium Laser Light Assault Rifle Light Assault Rifle Shotgun Mace Peak State ------------ > --- POWER ------------ Ion Engine > --- PROPULSION ------- Light Treads Light Treads > --- UTILITY ---------- Large Storage Unit Sensor Array Seismic Detector Shield Generator > --- WEAPON ----------- Improved Medium Laser Mace > --- INVENTORY -------- Ion Engine Light Ion Engine Light Ion Engine Heavy Ion Engine Heat Sink Small Storage Unit Weapon Shielding Improved Medium Laser Improved Medium Laser Light Assault Rifle Light Assault Rifle Shotgun Grenade Launcher Grenade Launcher [Rating: 15] Favorites ----------- Power Ion Engine Engine Ion Engine Propulsion Light Treads Treads Light Treads Utility Seismic Detector Device Seismic Detector Storage Large Storage Unit Weapon Light Assault Rifle Energy Gun Improved Medium Laser Ballistic Gun Light Assault Rifle Launcher Grenade Launcher Impact Weapon Mace Build | -11 -10 -9 ------- Run | Jun Mat Mat Slots Evolved 2 | . . 2 Power . | . . . Propulsion . | . . . Utility 2 | . . 2 Weapon . | . . . Parts Attached 21 | 7 10 4 Power 2 | 1 1 . Engine 2 | 1 1 . Core . | . . . Reactor . | . . . Propulsion 2 | 2 . . Treads 2 | 2 . . Leg . | . . . Wheel . | . . . Hover . | . . . Flight . | . . . Utility 6 | 2 2 2 Device 4 | 1 1 2 Storage 2 | 1 1 . Processor . | . . . Hackware . | . . . Protection . | . . . Artifact . | . . . Weapon 11 | 2 7 2 Energy Gun 3 | 2 1 . Energy Cannon . | . . . Ballistic Gun 4 | . 4 . Ballistic Cannon . | . . . Launcher 3 | . 1 2 Special Weapon . | . . . Impact Weapon 1 | . 1 . Slashing Weapon . | . . . Piercing Weapon . | . . . Special Melee Weapon . | . . . Unidentified Prototypes 1 | . 1 . Parts Lost 7 | . 2 5 Power 1 | . . 1 Propulsion 2 | . . 2 Utility 2 | . . 2 Weapon 2 | . 2 . Highest Loss Streak 5 | . 1 5 To Critical Strikes . | . . . Average Slot Usage (%) 97 | . 99 86 Engine 13 | . 14 8 Treads 26 | . 28 18 Device 16 | . 14 28 Storage 13 | . 14 11 Energy Gun 6 | . 5 9 Ballistic Gun 17 | . 20 . Impact Weapon 2 | . . 8 Naked Turns . | . . . Heaviest Build 34 | 14 32 34 Greatest Support 40 | 40 40 40 Greatest Overweight (x) 6 | . . 6 Average Overweight (x) . | . . . Largest Inventory Capacity 15 | 8 15 15 Average Capacity 13 | 7 13 15 Most Carried 15 | 3 15 15 Average Carried 10 | 1 10 14 Final Capacity 15 | 8 15 15 Final Carried 15 | 3 15 14 Class Distribution -------------------- 100% | Mutant Dominant Class ---------------- Mutant | -10/Materials Mutant | -9/Materials Resources | -11 -10 -9 ----------- Run | Jun Mat Mat Matter Collected 495 | 270 217 8 Remotely . | . . . Salvage Created 594 | 126 446 22 Parts 49 | 10 35 4 Haulers Intercepted 2 | . 2 . Recyclers Shooed . | . . . Parts Field Recycled . | . . . Retrieved Matter . | . . . Parts Self-Destructed . | . . . Prevented . | . . . Kills | -11 -10 -9 ------- Run | Jun Mat Mat Combat Hostiles Destroyed 13 | . 13 . Melee 2 | . 2 . Guns 10 | . 10 . AOE 1 | . 1 . Classes Destroyed 8 | 3 5 . Worker 2 | 1 1 . Tunneler 2 | 2 . . Hauler 2 | . 2 . Recycler 1 | 1 . . Operator 1 | . 1 . Watcher 4 | . 3 1 Swarmer 7 | . 7 . Grunt 6 | . 6 . Best Kill Streak 5 | 2 5 1 Combat Bots Only 3 | . 3 . Max Kills in Single Turn 1 | 1 1 1 Gunslinging . | . . . Exploded 1 | . 1 . Melee 1 | . 1 . Uniques/NPCs Destroyed . | . . . Combat | -11 -10 -9 -------- Run | Jun Mat Mat Damage Taken 1367 | . 684 683 Core 522 | . 119 403 Absorbed by Shields 31 | . . 31 Core Remaining (%) 76 | 100 52 . Volleys Fired 68 | 8 57 3 Largest 2 | 2 2 2 Hottest 86 | 80 80 86 Shots Fired 121 | 16 100 5 Gun 112 | 16 94 2 Cannon . | . . . Launcher 9 | . 6 3 Special . | . . . Kinetic 74 | . 74 . Thermal 26 | 8 16 2 Explosive 9 | . 6 3 Electromagnetic 12 | 8 4 . Robot Hit Streak 8 | 4 8 2 Robot Miss Streak 5 | 5 5 4 Penetration Max . | . . . Secondary Targets 2 | . 2 . Max Gunslinging Chain 1 | . 1 . Shots Hit Robots 65 | 7 55 3 Core Hits 39 | 3 32 4 Critical Kills 3 | . 2 1 Critical Parts Destroyed . | . . . Critical Strikes 3 | . 2 1 Destroy 2 | . 2 . Smash 1 | . . 1 Melee Attacks 6 | . 5 1 Impact 6 | . 5 1 Slashing . | . . . Piercing . | . . . Sneak Attacks . | . . . Combat Hostiles . | . . . Follow-up Attacks . | . . . Damage Inflicted 1110 | 90 885 135 Guns 578 | 88 490 . Cannons . | . . . Explosions 422 | . 333 89 Melee 36 | . . 36 Ramming 74 | 2 62 10 Kinetic 347 | . 347 . Thermal 141 | 34 107 . Explosive 329 | . 240 89 Electromagnetic 183 | 54 129 . Impact 36 | . . 36 Slashing . | . . . Piercing . | . . . Highest Corruption 5 | . 5 . Average Corruption 4 | . 4 . Corruption Purged . | . . . Corruption Blocked . | . . . Effects 2 | . 2 . Matter Fused 1 | . 1 . Data Loss (major) 1 | . 1 . Overload Shots . | . . . Overflow Damage 7 | . 2 5 Projectiles . | . . . Explosions 7 | . 2 5 Melee . | . . . Knockbacks . | . . . Impact . | . . . Kinetic . | . . . Secondary . | . . . Self-Inflicted Damage 99 | . 23 76 Shots 4 | . 1 3 Rammed 27 | 1 17 9 Targets Rammed 33 | 2 22 9 Kicked . | . . . Crushed 6 | 1 5 . Highest Temperature 192 | 54 192 . Average Temperature 66 | 27 81 . Received Heat Transfer 280 | . 180 100 Siege Activations . | . . . Robots Corrupted . | . . . Combat Hostiles . | . . . Parts Fried . | . . . Impact Corruptions . | . . . Robots Melted . | . . . Combat Hostiles . | . . . Parts Melted . | . . . Heat Transferred 325 | 75 250 . Parts Sabotaged . | . . . Parts Stolen . | . . . Parts Stripped . | . . . Power Chain Reactions 1 | . 1 . Missiles Intercepted . | . . . Alert | -11 -10 -9 ------- Run | Jun Mat Mat Peak Influence 244 | 20 244 84 Initial 60 | . 13 60 Average 95 | 7 111 60 Maximum Alert Level 1 | . 1 . Low Security (%) 92 | 100 89 100 Level 1 7 | . 10 . Level 2 . | . . . Level 3 . | . . . Level 4 . | . . . Level 5 . | . . . High Security . | . . . Max Security . | . . . Squads Dispatched 6 | . 5 1 Investigation 1 | . . 1 Extermination . | . . . Reinforcement 5 | . 5 . Assault . | . . . Garrison . | . . . Intercept . | . . . Searches Triggered . | . . . Construction Impeded . | . . . Haulers Reinforced . | . . . Active Scanning Responses . | . . . Cargo Convoy Interrupts . | . . . Stealth | -11 -10 -9 --------- Run | Jun Mat Mat Distress Signals 4 | . 2 2 Communications Jammed . | . . . Distress Signals . | . . . Times Spotted 33 | . 29 4 Peak Tracking Total 5 | . 5 4 Tactical Retreats 1 | . 1 . Traps | -11 -10 -9 ------- Run | Jun Mat Mat Traps Triggered 3 | . 3 . Indirectly . | . . . Trap Hack Attempts . | . . . Triggered . | . . . Disarmed 6 | . 6 . Reprogrammed . | . . . Reused . | . . . Traps Extracted . | . . . Installed . | . . . Triggered . | . . . Machines | -11 -10 -9 ---------- Run | Jun Mat Mat Machines Disabled 2 | . 2 . Max in Single Turn 1 | . 1 . Machines Repaired . | . . . Machines Sabotaged . | . . . Overloaded Fab Kills . | . . . Hacking | -11 -10 -9 --------- Run | Jun Mat Mat Machines Accessed 5 | . 4 1 Terminals 2 | . 2 . Fabricators . | . . . Repair Stations 1 | . . 1 Recycling Units 2 | . 2 . Scanalyzers . | . . . Garrison Access . | . . . Total Hacks 10 | . 7 3 Successful 4 | . 3 1 Failed 6 | . 4 2 Catastrophic 3 | . 2 1 Database Lockouts . | . . . Manual 4 | . 4 . Terminals 5 | . 5 . Fabricators . | . . . Repair Stations 3 | . . 3 Recycling Units 2 | . 2 . Scanalyzers . | . . . Garrison Access . | . . . Terminal Hacks 1 | . 1 . Disarm Traps 1 | . 1 . Fabricator Hacks . | . . . Repair Station Hacks 1 | . . 1 Scan Component 1 | . . 1 Recycling Unit Hacks 2 | . 2 . Report Inventory 2 | . 2 . Scanalyzer . | . . . Garrison Access Hacks . | . . . Unauthorized Hacks . | . . . Terminals . | . . . Fabricators . | . . . Repair Stations . | . . . Recycling Units . | . . . Scanalyzers . | . . . Garrison Access . | . . . Data Cores Recovered . | . . . Used . | . . . Hacking Detections 4 | . 3 1 Full Trace Events 1 | . . 1 Feedback Events . | . . . Feedback Blocked . | . . . Robot Schematics Acquired . | . . . Robots Built . | . . . Authchips . | . . . Time . | . . . Total Robot Build Rating . | . . . Part Schematics Acquired . | . . . Parts Built . | . . . Authchips . | . . . Time . | . . . Total Part Build Rating . | . . . Parts Repaired . | . . . Time . | . . . Parts Recycled . | . . . Recycled Matter . | . . . Retrieved Matter . | . . . Retrieved Components . | . . . Parts Scanalyzed . | . . . Part Schematics Acquired . | . . . Parts Damaged . | . . . Bothacking | -11 -10 -9 ------------ Run | Jun Mat Mat Used RIF Installer . | . . . Robots Hacked . | . . . Non-combat . | . . . Combat . | . . . Robot Hacks Applied . | . . . Relay Couplers Released . | . . . Fabnet Peak Effective % . | . . . Robots Rewired . | . . . Allies Hacked . | . . . Hacks Repelled . | . . . Allies | -11 -10 -9 -------- Run | Jun Mat Mat Total Allies . | . . . Largest Group . | . . . Highest-Rated Group . | . . . Highest-Rated Ally . | . . . Total Orders . | . . . Ally Attacks . | . . . Total Damage . | . . . Kills . | . . . Allies Corrupted . | . . . Allies Melted . | . . . Intel | -11 -10 -9 ------- Run | Jun Mat Mat Robot Analysis Total . | . . . Derelict Logs Recovered . | . . . Drone Launches . | . . . Drone Recoveries . | . . . Exploration | -11 -10 -9 ------------- Run | Jun Mat Mat Turns Passed 1829 | 137 1427 265 Spaces Moved 872 | 62 709 101 Core 5 | 2 . 3 Treads 867 | 60 709 98 Legs . | . . . Wheels . | . . . Hover . | . . . Flight . | . . . Fastest Speed 50 | 50 160 160 Average Speed 160 | 156 160 168 Slowest Speed 350 | 160 160 350 Overloaded Moves . | . . . Propulsion Burnouts . | . . . Robots Hopped . | . . . Cave-ins Triggered . | . . . Exploration Rate (%) 29 | 4 77 7 Regions Visited 2 Branch Regions . Pre-discovered Areas . | . . . Known Exits Taken . | . . . Unknown Exits Taken 2 | 1 1 . Scrap Searched . | . . . Spaces Dug 2 | . 2 . Terrain Destroyed 26 | . 2 24 Melee 2 | . 2 . Projectile . | . . . AOE 24 | . . 24 Terrain Rammed . | . . . Walls Destroyed . | . . . Machines Disabled . | . . . Actions | -11 -10 -9 --------- Run | Jun Mat Mat Total 1147 | 81 894 172 Wait 120 | . 68 52 Move 870 | 61 708 101 Hop . | . . . Pick Up 21 | 3 16 2 Fast Attach 9 | 7 2 . Attach 4 | . 1 3 Detach . | . . . Swap 8 | . 7 1 Drop 8 | . 8 . Fire 68 | 8 57 3 Melee 6 | . 5 1 Ram 5 | . . 5 Kick . | . . . Crush 28 | 2 22 4 Escape Stasis . | . . . Rewire . | . . . Trap . | . . . Miscellaneous . | . . . Route ------- -11/Junkyard -10/Materials (discovered 3 exits: *Mat x2 / [*Min]) -9/Materials History --------- Turn | Location | Event 10 | -11/Junkyard | Discovered new exit (range 16) 138 | -11/Junkyard | Entered Materials 320 | -10/Materials | Build established: Mutant 833 | -10/Materials | Discovered new exit (range 12) 1031 | -10/Materials | Discovered new exit (range 14) 1535 | -10/Materials | Discovered new exit (range 16) 1565 | -10/Materials | Entered another Materials area 1565 | -9/Materials | Evolved 2 slots: Utility x2 1809 | -9/Materials | Core integrity fell below 50% 1822 | -9/Materials | Core integrity fell below 20% 1830 | -9/Materials | Destroyed self with Grenade Launcher Last Messages --------------- 01787_ Slammed into L-31 Rogue. 01792_ Imp. Medium Laser severed. 01792_ Slammed into L-31 Rogue. 01793_ Acquired 8 matter. 01794_ R-06 Scavenger collects Imp. Medium Laser. 01798_ Shield Generator destroyed. 01798_ R-06 Scavenger collects Lgt. Ion Engine. 01799_ Slammed into L-31 Rogue. 01800_ Sensor Array destroyed. 01800_ Lgt. Treads destroyed. 01801_ Slammed into L-31 Rogue. 01802_ R-06 Scavenger collects Grenade Launcher. 01803_ Seismic Detector severed. 01805_ Slammed into L-31 Rogue. 01808_ The unstable cave ceiling collapses. 01808_ R-06 Scavenger collects Seismic Detector. 01808_ Slammed into L-31 Rogue. 01809_ The unstable cave ceiling collapses. 01812_ Slammed into L-31 Rogue. 01824_ The unstable cave ceiling collapses. Map ----- +----------------------------------------------------+ | ????????????# #??????????????????????????? | | ????????????# """ =#??????????????????????????? | | ????????????# """"" #??????????????????????????? | | ????????????# """"" #??????????????????????????? | | ????????????# """"" #??????????????????????????? | | ????????????# """ #??????????????????????????? | | ????????????# #??????????????????????????? | | ????????????#####+#####??????????????????????????? | | ?????????????# #???????????????????????????? | | ?????????????# #???????????????????????????? | | ?????????????# #???????????????????????????? | | ??????????######## #???????????????????????????? | | ??????????# # #???????????????????????????? | | ??????????# """ # #???????????????????????????? | | ??????????# "R" + ########????????????????????? | | ??????????# " " # ##########???????????? | | ??????????# # # #???????????? | | ??????????# = # # """#???????????? | | ??????????############### # """#???????????? | | ????????????????????????# # """#???????????? | | ????????????????????????# # #???????????? | | ????????????????????????# + """#???????????? | | ????????????????????????# # """#???????????? | | ????????????????????????# # """#???????????? | | ????????????????????????# # #???????????? | | ??????????????????????###@############???????????? | | ??????????????????????# lg #????????????????????? | | ??????????????????????# #????????????????????? | | ??????????????????????## ##????????????????????? | | ??????????????????????# #????????????????????? | | ??????????????????????# # #????????????????????? | | ??????????????????????# # #????????????????????? | | ??????????????????????### ###????????????????????? | | ????????????????????????# #??????????????????????? | | ????????????????????????# #??????????????????????? | | ????????????????????????# #??????????????????????? | | ???????????????????????? #??????????????????????? | | ???????????????????????? ??????????????????????? | | ???????????????????????? ??????????????????????? | | ???????????????????????? ??????????????????????? | | ???????????????????????? #??????????????????????? | | ???????????????????????? #???????????????????????? | | ???????????????????????? ????????????????????????? | | ???????????????????????? ????????????????????????? | | ???????????????????????? ????????????????????????? | | ?????????????????????????????????????????????????? | | ?????????????????????????????????????????????????? | | ?????????????????????????????????????????????????? | | ?????????????????????????????????????????????????? | | ?????????????????????????????????????????????????? | +----------------------------------------------------+ Best States ------------- Heat Dissipation 28 Energy Generation 10 Energy Capacity 250 Matter Stores 300 Matter Capacity 300 Sight Range 16 Robot Scan Range 14 Terrain Scan Density 10 Evasion (%) 40 Recoil Reduction 2 Item Schematics ----------------- None Robot Schematics ------------------ None Fabricated ------------ Nothing Alien Tech Used ----------------- None Achievements -------------- None Challenges ------------ None Game ------ Seed LaserSeismicNullifier Manual? 0 Play Time 00:17:35 Cumulative 32.7 hours Start 2024.02.04 @ 23:27:43 End 2024.02.04 @ 23:45:31 Sessions 3 Manual Loads 0 Difficulty Rogue Special Mode None Game No. 25 Rogue 25 Adventurer 0 Explorer 0 Win Type - Total 0 Types 0/0/0/0/0/0/0/0/0 Lore% 19 Gallery% 25 Achievement% 19 Wizard Run 0 Options --------- ASCII 0 Keyboard 1 Movement Vi Keybinds 0 Fullscreen 1 Font 18/Terminus Map View 76x50 Tactical HUD 1 Map Filters NONE Filters NONE Steam 1 RUN: d53fc12d-e730-4a52-9d72-58ef791c4e6f